Workbook

Sheet TF sebzésbónusz erőből
A1: Erő | B1: Korábbi sebzésbónusz | C1: Fordulóban sebzésbónusz | D1: Olimpia számolt erő | E1: Olimpián sebzésbónusz
A2: 1 | B2: =FLOOR(IF(IF(A2<=36,(A2-14)/2,11+(A2-36)/3)<0,0,IF(A2<=36,(A2-14)/2,11+(A2-36)/3)),1) -> 0 | C2: =FLOOR(IF(IF($A2>515,128+(SQRT($A2-400)*4),IF($A2>36,11+(($A2-36)/3),($A2-14)/2))<0,0,IF($A2>515,128+(SQRT($A2-400)*4),IF($A2>36,11+(($A2-36)/3),($A2-14)/2))),1) -> 0 | D2: =FLOOR(IF($A2>250,250+($A2-250)/3.4,$A2),1) -> 1 | E2: =FLOOR(IF(IF($D2>515,128+(SQRT($D2-400)*4),IF($D2>36,11+(($D2-36)/3),($D2-14)/2))<0,0,IF($D2>515,128+(SQRT($D2-400)*4),IF($D2>36,11+(($D2-36)/3),($D2-14)/2))),1) -> 0
A3: 2 | B3: =FLOOR(IF(IF(A3<=36,(A3-14)/2,11+(A3-36)/3)<0,0,IF(A3<=36,(A3-14)/2,11+(A3-36)/3)),1) -> 0 | C3: =FLOOR(IF(IF($A3>515,128+(SQRT($A3-400)*4),IF($A3>36,11+(($A3-36)/3),($A3-14)/2))<0,0,IF($A3>515,128+(SQRT($A3-400)*4),IF($A3>36,11+(($A3-36)/3),($A3-14)/2))),1) -> 0 | D3: =FLOOR(IF($A3>250,250+($A3-250)/3.4,$A3),1) -> 2 | E3: =FLOOR(IF(IF($D3>515,128+(SQRT($D3-400)*4),IF($D3>36,11+(($D3-36)/3),($D3-14)/2))<0,0,IF($D3>515,128+(SQRT($D3-400)*4),IF($D3>36,11+(($D3-36)/3),($D3-14)/2))),1) -> 0
A4: 3 | B4: 0 | C4: 0 | D4: 3 | E4: 0
A5: 4 | B5: 0 | C5: 0 | D5: 4 | E5: 0
A6: 5 | B6: 0 | C6: 0 | D6: 5 | E6: 0
A7: 6 | B7: 0 | C7: 0 | D7: 6 | E7: 0
A8: 7 | B8: 0 | C8: 0 | D8: 7 | E8: 0
A9: 8 | B9: 0 | C9: 0 | D9: 8 | E9: 0
A10: 9 | B10: 0 | C10: 0 | D10: 9 | E10: 0
A11: 10 | B11: 0 | C11: 0 | D11: 10 | E11: 0
A12: 11 | B12: 0 | C12: 0 | D12: 11 | E12: 0
A13: 12 | B13: 0 | C13: 0 | D13: 12 | E13: 0
A14: 13 | B14: 0 | C14: 0 | D14: 13 | E14: 0
A15: 14 | B15: 0 | C15: 0 | D15: 14 | E15: 0
A16: 15 | B16: 0 | C16: 0 | D16: 15 | E16: 0
A17: 16 | B17: 1 | C17: 1 | D17: 16 | E17: 1
A18: 17 | B18: 1 | C18: 1 | D18: 17 | E18: 1
A19: 18 | B19: 2 | C19: 2 | D19: 18 | E19: 2
A20: 19 | B20: 2 | C20: 2 | D20: 19 | E20: 2
A21: 20 | B21: 3 | C21: 3 | D21: 20 | E21: 3
A22: 21 | B22: 3 | C22: 3 | D22: 21 | E22: 3
A23: 22 | B23: 4 | C23: 4 | D23: 22 | E23: 4
A24: 23 | B24: 4 | C24: 4 | D24: 23 | E24: 4
A25: 24 | B25: 5 | C25: 5 | D25: 24 | E25: 5
A26: 25 | B26: 5 | C26: 5 | D26: 25 | E26: 5
A27: 26 | B27: 6 | C27: 6 | D27: 26 | E27: 6
A28: 27 | B28: 6 | C28: 6 | D28: 27 | E28: 6
A29: 28 | B29: 7 | C29: 7 | D29: 28 | E29: 7
A30: 29 | B30: 7 | C30: 7 | D30: 29 | E30: 7
A31: 30 | B31: 8 | C31: 8 | D31: 30 | E31: 8
A32: 31 | B32: 8 | C32: 8 | D32: 31 | E32: 8
A33: 32 | B33: 9 | C33: 9 | D33: 32 | E33: 9
A34: 33 | B34: 9 | C34: 9 | D34: 33 | E34: 9
A35: 34 | B35: 10 | C35: 10 | D35: 34 | E35: 10
A36: 35 | B36: 10 | C36: 10 | D36: 35 | E36: 10
A37: 36 | B37: 11 | C37: 11 | D37: 36 | E37: 11
A38: 37 | B38: 11 | C38: 11 | D38: 37 | E38: 11
A39: 38 | B39: 11 | C39: 11 | D39: 38 | E39: 11
A40: 39 | B40: 12 | C40: 12 | D40: 39 | E40: 12
A41: 40 | B41: 12 | C41: 12 | D41: 40 | E41: 12
A42: 41 | B42: 12 | C42: 12 | D42: 41 | E42: 12
A43: 42 | B43: 13 | C43: 13 | D43: 42 | E43: 13
A44: 43 | B44: 13 | C44: 13 | D44: 43 | E44: 13
A45: 44 | B45: 13 | C45: 13 | D45: 44 | E45: 13
A46: 45 | B46: 14 | C46: 14 | D46: 45 | E46: 14
A47: 46 | B47: 14 | C47: 14 | D47: 46 | E47: 14
A48: 47 | B48: 14 | C48: 14 | D48: 47 | E48: 14
A49: 48 | B49: 15 | C49: 15 | D49: 48 | E49: 15
A50: 49 | B50: 15 | C50: 15 | D50: 49 | E50: 15
A51: 50 | B51: 15 | C51: 15 | D51: 50 | E51: 15
A52: 51 | B52: 16 | C52: 16 | D52: 51 | E52: 16
A53: 52 | B53: 16 | C53: 16 | D53: 52 | E53: 16
A54: 53 | B54: 16 | C54: 16 | D54: 53 | E54: 16
A55: 54 | B55: 17 | C55: 17 | D55: 54 | E55: 17
A56: 55 | B56: 17 | C56: 17 | D56: 55 | E56: 17
A57: 56 | B57: 17 | C57: 17 | D57: 56 | E57: 17
A58: 57 | B58: 18 | C58: 18 | D58: 57 | E58: 18
A59: 58 | B59: 18 | C59: 18 | D59: 58 | E59: 18
A60: 59 | B60: 18 | C60: 18 | D60: 59 | E60: 18
A61: 60 | B61: 19 | C61: 19 | D61: 60 | E61: 19
A62: 61 | B62: 19 | C62: 19 | D62: 61 | E62: 19
A63: 62 | B63: 19 | C63: 19 | D63: 62 | E63: 19
A64: 63 | B64: 20 | C64: 20 | D64: 63 | E64: 20
A65: 64 | B65: 20 | C65: 20 | D65: 64 | E65: 20
A66: 65 | B66: 20 | C66: 20 | D66: 65 | E66: 20
A67: 66 | B67: =FLOOR(IF(IF(A67<=36,(A67-14)/2,11+(A67-36)/3)<0,0,IF(A67<=36,(A67-14)/2,11+(A67-36)/3)),1) -> 21 | C67: =FLOOR(IF(IF($A67>515,128+(SQRT($A67-400)*4),IF($A67>36,11+(($A67-36)/3),($A67-14)/2))<0,0,IF($A67>515,128+(SQRT($A67-400)*4),IF($A67>36,11+(($A67-36)/3),($A67-14)/2))),1) -> 21 | D67: =FLOOR(IF($A67>250,250+($A67-250)/3.4,$A67),1) -> 66 | E67: =FLOOR(IF(IF($D67>515,128+(SQRT($D67-400)*4),IF($D67>36,11+(($D67-36)/3),($D67-14)/2))<0,0,IF($D67>515,128+(SQRT($D67-400)*4),IF($D67>36,11+(($D67-36)/3),($D67-14)/2))),1) -> 21
A68: 67 | B68: 21 | C68: 21 | D68: 67 | E68: 21
A69: 68 | B69: 21 | C69: 21 | D69: 68 | E69: 21
A70: 69 | B70: 22 | C70: 22 | D70: 69 | E70: 22
A71: 70 | B71: 22 | C71: 22 | D71: 70 | E71: 22
A72: 71 | B72: 22 | C72: 22 | D72: 71 | E72: 22
A73: 72 | B73: 23 | C73: 23 | D73: 72 | E73: 23
A74: 73 | B74: 23 | C74: 23 | D74: 73 | E74: 23
A75: 74 | B75: 23 | C75: 23 | D75: 74 | E75: 23
A76: 75 | B76: 24 | C76: 24 | D76: 75 | E76: 24
A77: 76 | B77: 24 | C77: 24 | D77: 76 | E77: 24
A78: 77 | B78: 24 | C78: 24 | D78: 77 | E78: 24
A79: 78 | B79: 25 | C79: 25 | D79: 78 | E79: 25
A80: 79 | B80: 25 | C80: 25 | D80: 79 | E80: 25
A81: 80 | B81: 25 | C81: 25 | D81: 80 | E81: 25
A82: 81 | B82: 26 | C82: 26 | D82: 81 | E82: 26
A83: 82 | B83: 26 | C83: 26 | D83: 82 | E83: 26
A84: 83 | B84: 26 | C84: 26 | D84: 83 | E84: 26
A85: 84 | B85: 27 | C85: 27 | D85: 84 | E85: 27
A86: 85 | B86: 27 | C86: 27 | D86: 85 | E86: 27
A87: 86 | B87: 27 | C87: 27 | D87: 86 | E87: 27
A88: 87 | B88: 28 | C88: 28 | D88: 87 | E88: 28
A89: 88 | B89: 28 | C89: 28 | D89: 88 | E89: 28
A90: 89 | B90: 28 | C90: 28 | D90: 89 | E90: 28
A91: 90 | B91: 29 | C91: 29 | D91: 90 | E91: 29
A92: 91 | B92: 29 | C92: 29 | D92: 91 | E92: 29
A93: 92 | B93: 29 | C93: 29 | D93: 92 | E93: 29
A94: 93 | B94: 30 | C94: 30 | D94: 93 | E94: 30
A95: 94 | B95: 30 | C95: 30 | D95: 94 | E95: 30
A96: 95 | B96: 30 | C96: 30 | D96: 95 | E96: 30
A97: 96 | B97: 31 | C97: 31 | D97: 96 | E97: 31
A98: 97 | B98: 31 | C98: 31 | D98: 97 | E98: 31
A99: 98 | B99: 31 | C99: 31 | D99: 98 | E99: 31
A100: 99 | B100: 32 | C100: 32 | D100: 99 | E100: 32
A101: 100 | B101: 32 | C101: 32 | D101: 100 | E101: 32
A102: 101 | B102: 32 | C102: 32 | D102: 101 | E102: 32
A103: 102 | B103: 33 | C103: 33 | D103: 102 | E103: 33
A104: 103 | B104: 33 | C104: 33 | D104: 103 | E104: 33
A105: 104 | B105: 33 | C105: 33 | D105: 104 | E105: 33
A106: 105 | B106: 34 | C106: 34 | D106: 105 | E106: 34
A107: 106 | B107: 34 | C107: 34 | D107: 106 | E107: 34
A108: 107 | B108: 34 | C108: 34 | D108: 107 | E108: 34
A109: 108 | B109: 35 | C109: 35 | D109: 108 | E109: 35
A110: 109 | B110: 35 | C110: 35 | D110: 109 | E110: 35
A111: 110 | B111: 35 | C111: 35 | D111: 110 | E111: 35
A112: 111 | B112: 36 | C112: 36 | D112: 111 | E112: 36
A113: 112 | B113: 36 | C113: 36 | D113: 112 | E113: 36
A114: 113 | B114: 36 | C114: 36 | D114: 113 | E114: 36
A115: 114 | B115: 37 | C115: 37 | D115: 114 | E115: 37
A116: 115 | B116: 37 | C116: 37 | D116: 115 | E116: 37
A117: 116 | B117: 37 | C117: 37 | D117: 116 | E117: 37
A118: 117 | B118: 38 | C118: 38 | D118: 117 | E118: 38
A119: 118 | B119: 38 | C119: 38 | D119: 118 | E119: 38
A120: 119 | B120: 38 | C120: 38 | D120: 119 | E120: 38
A121: 120 | B121: 39 | C121: 39 | D121: 120 | E121: 39
A122: 121 | B122: 39 | C122: 39 | D122: 121 | E122: 39
A123: 122 | B123: 39 | C123: 39 | D123: 122 | E123: 39
A124: 123 | B124: 40 | C124: 40 | D124: 123 | E124: 40
A125: 124 | B125: 40 | C125: 40 | D125: 124 | E125: 40
A126: 125 | B126: 40 | C126: 40 | D126: 125 | E126: 40
A127: 126 | B127: 41 | C127: 41 | D127: 126 | E127: 41
A128: 127 | B128: 41 | C128: 41 | D128: 127 | E128: 41
A129: 128 | B129: 41 | C129: 41 | D129: 128 | E129: 41
A130: 129 | B130: 42 | C130: 42 | D130: 129 | E130: 42
A131: 130 | B131: =FLOOR(IF(IF(A131<=36,(A131-14)/2,11+(A131-36)/3)<0,0,IF(A131<=36,(A131-14)/2,11+(A131-36)/3)),1) -> 42 | C131: =FLOOR(IF(IF($A131>515,128+(SQRT($A131-400)*4),IF($A131>36,11+(($A131-36)/3),($A131-14)/2))<0,0,IF($A131>515,128+(SQRT($A131-400)*4),IF($A131>36,11+(($A131-36)/3),($A131-14)/2))),1) -> 42 | D131: =FLOOR(IF($A131>250,250+($A131-250)/3.4,$A131),1) -> 130 | E131: =FLOOR(IF(IF($D131>515,128+(SQRT($D131-400)*4),IF($D131>36,11+(($D131-36)/3),($D131-14)/2))<0,0,IF($D131>515,128+(SQRT($D131-400)*4),IF($D131>36,11+(($D131-36)/3),($D131-14)/2))),1) -> 42
A132: 131 | B132: 42 | C132: 42 | D132: 131 | E132: 42
A133: 132 | B133: 43 | C133: 43 | D133: 132 | E133: 43
A134: 133 | B134: 43 | C134: 43 | D134: 133 | E134: 43
A135: 134 | B135: 43 | C135: 43 | D135: 134 | E135: 43
A136: 135 | B136: 44 | C136: 44 | D136: 135 | E136: 44
A137: 136 | B137: 44 | C137: 44 | D137: 136 | E137: 44
A138: 137 | B138: 44 | C138: 44 | D138: 137 | E138: 44
A139: 138 | B139: 45 | C139: 45 | D139: 138 | E139: 45
A140: 139 | B140: 45 | C140: 45 | D140: 139 | E140: 45
A141: 140 | B141: 45 | C141: 45 | D141: 140 | E141: 45
A142: 141 | B142: 46 | C142: 46 | D142: 141 | E142: 46
A143: 142 | B143: 46 | C143: 46 | D143: 142 | E143: 46
A144: 143 | B144: 46 | C144: 46 | D144: 143 | E144: 46
A145: 144 | B145: 47 | C145: 47 | D145: 144 | E145: 47
A146: 145 | B146: 47 | C146: 47 | D146: 145 | E146: 47
A147: 146 | B147: 47 | C147: 47 | D147: 146 | E147: 47
A148: 147 | B148: 48 | C148: 48 | D148: 147 | E148: 48
A149: 148 | B149: 48 | C149: 48 | D149: 148 | E149: 48
A150: 149 | B150: 48 | C150: 48 | D150: 149 | E150: 48
A151: 150 | B151: 49 | C151: 49 | D151: 150 | E151: 49
A152: 151 | B152: 49 | C152: 49 | D152: 151 | E152: 49
A153: 152 | B153: 49 | C153: 49 | D153: 152 | E153: 49
A154: 153 | B154: 50 | C154: 50 | D154: 153 | E154: 50
A155: 154 | B155: 50 | C155: 50 | D155: 154 | E155: 50
A156: 155 | B156: 50 | C156: 50 | D156: 155 | E156: 50
A157: 156 | B157: 51 | C157: 51 | D157: 156 | E157: 51
A158: 157 | B158: 51 | C158: 51 | D158: 157 | E158: 51
A159: 158 | B159: 51 | C159: 51 | D159: 158 | E159: 51
A160: 159 | B160: 52 | C160: 52 | D160: 159 | E160: 52
A161: 160 | B161: 52 | C161: 52 | D161: 160 | E161: 52
A162: 161 | B162: 52 | C162: 52 | D162: 161 | E162: 52
A163: 162 | B163: 53 | C163: 53 | D163: 162 | E163: 53
A164: 163 | B164: 53 | C164: 53 | D164: 163 | E164: 53
A165: 164 | B165: 53 | C165: 53 | D165: 164 | E165: 53
A166: 165 | B166: 54 | C166: 54 | D166: 165 | E166: 54
A167: 166 | B167: 54 | C167: 54 | D167: 166 | E167: 54
A168: 167 | B168: 54 | C168: 54 | D168: 167 | E168: 54
A169: 168 | B169: 55 | C169: 55 | D169: 168 | E169: 55
A170: 169 | B170: 55 | C170: 55 | D170: 169 | E170: 55
A171: 170 | B171: 55 | C171: 55 | D171: 170 | E171: 55
A172: 171 | B172: 56 | C172: 56 | D172: 171 | E172: 56
A173: 172 | B173: 56 | C173: 56 | D173: 172 | E173: 56
A174: 173 | B174: 56 | C174: 56 | D174: 173 | E174: 56
A175: 174 | B175: 57 | C175: 57 | D175: 174 | E175: 57
A176: 175 | B176: 57 | C176: 57 | D176: 175 | E176: 57
A177: 176 | B177: 57 | C177: 57 | D177: 176 | E177: 57
A178: 177 | B178: 58 | C178: 58 | D178: 177 | E178: 58
A179: 178 | B179: 58 | C179: 58 | D179: 178 | E179: 58
A180: 179 | B180: 58 | C180: 58 | D180: 179 | E180: 58
A181: 180 | B181: 59 | C181: 59 | D181: 180 | E181: 59
A182: 181 | B182: 59 | C182: 59 | D182: 181 | E182: 59
A183: 182 | B183: 59 | C183: 59 | D183: 182 | E183: 59
A184: 183 | B184: 60 | C184: 60 | D184: 183 | E184: 60
A185: 184 | B185: 60 | C185: 60 | D185: 184 | E185: 60
A186: 185 | B186: 60 | C186: 60 | D186: 185 | E186: 60
A187: 186 | B187: 61 | C187: 61 | D187: 186 | E187: 61
A188: 187 | B188: 61 | C188: 61 | D188: 187 | E188: 61
A189: 188 | B189: 61 | C189: 61 | D189: 188 | E189: 61
A190: 189 | B190: 62 | C190: 62 | D190: 189 | E190: 62
A191: 190 | B191: 62 | C191: 62 | D191: 190 | E191: 62
A192: 191 | B192: 62 | C192: 62 | D192: 191 | E192: 62
A193: 192 | B193: 63 | C193: 63 | D193: 192 | E193: 63
A194: 193 | B194: 63 | C194: 63 | D194: 193 | E194: 63
A195: 194 | B195: =FLOOR(IF(IF(A195<=36,(A195-14)/2,11+(A195-36)/3)<0,0,IF(A195<=36,(A195-14)/2,11+(A195-36)/3)),1) -> 63 | C195: =FLOOR(IF(IF($A195>515,128+(SQRT($A195-400)*4),IF($A195>36,11+(($A195-36)/3),($A195-14)/2))<0,0,IF($A195>515,128+(SQRT($A195-400)*4),IF($A195>36,11+(($A195-36)/3),($A195-14)/2))),1) -> 63 | D195: =FLOOR(IF($A195>250,250+($A195-250)/3.4,$A195),1) -> 194 | E195: =FLOOR(IF(IF($D195>515,128+(SQRT($D195-400)*4),IF($D195>36,11+(($D195-36)/3),($D195-14)/2))<0,0,IF($D195>515,128+(SQRT($D195-400)*4),IF($D195>36,11+(($D195-36)/3),($D195-14)/2))),1) -> 63
A196: 195 | B196: 64 | C196: 64 | D196: 195 | E196: 64
A197: 196 | B197: 64 | C197: 64 | D197: 196 | E197: 64
A198: 197 | B198: 64 | C198: 64 | D198: 197 | E198: 64
A199: 198 | B199: 65 | C199: 65 | D199: 198 | E199: 65
A200: 199 | B200: 65 | C200: 65 | D200: 199 | E200: 65
... 3801 more rows
